[Event "Early-Titled-Tuesday-Blitz-August-29-2023"]
[Site "Chess.com"]
[Date "2023.08.29"]
[Round "3"]
[White "Tomytoteph"]
[Black "ShahMatKanal"]
[Result "1/2-1/2"]
[WhiteElo "2610"]
[BlackElo "2433"]
[TimeControl "180+1"]
[EndTime "8:31:02 PDT"]
[Termination "Game drawn by 50-move rule"]

1. e4 {[%clk 0:02:57.3]} 1... c5 {[%clk 0:02:59.1]} 2. Nf3 {[%clk 0:02:56.8]}
2... e6 {[%clk 0:02:55.5]} 3. d4 {[%clk 0:02:56.5]} 3... cxd4 {[%clk 0:02:55.4]}
4. Nxd4 {[%clk 0:02:57.4]} 4... a6 {[%clk 0:02:54.9]} 5. c4 {[%clk 0:02:56.4]}
5... d6 {[%clk 0:02:49.4]} 6. Nc3 {[%clk 0:02:52]} 6... Nf6 {[%clk 0:02:49.8]}
7. Be3 {[%clk 0:02:51.3]} 7... Be7 {[%clk 0:02:49.2]} 8. f3 {[%clk 0:02:50.9]}
8... Nbd7 {[%clk 0:02:38.6]} 9. Qd2 {[%clk 0:02:50.3]} 9... h6 {[%clk
0:02:30.8]} 10. O-O-O {[%clk 0:02:49.4]} 10... Qc7 {[%clk 0:02:22.7]} 11. Kb1
{[%clk 0:02:49.2]} 11... b6 {[%clk 0:02:17.9]} 12. g4 {[%clk 0:02:47.9]} 12...
Bb7 {[%clk 0:02:14.7]} 13. Be2 {[%clk 0:02:47.9]} 13... O-O-O {[%clk 0:02:10.1]}
14. Rc1 {[%clk 0:02:47.6]} 14... Kb8 {[%clk 0:02:09.8]} 15. h4 {[%clk
0:02:26.5]} 15... Ne5 {[%clk 0:01:55.2]} 16. b3 {[%clk 0:02:24.6]} 16... Nfd7
{[%clk 0:01:48.1]} 17. f4 {[%clk 0:02:12.5]} 17... Nc6 {[%clk 0:01:45.9]} 18.
Bf3 {[%clk 0:02:11.8]} 18... Nxd4 {[%clk 0:01:43.4]} 19. Bxd4 {[%clk 0:02:11.9]}
19... Bf6 {[%clk 0:01:39.1]} 20. g5 {[%clk 0:02:08.1]} 20... hxg5 {[%clk
0:01:37.4]} 21. hxg5 {[%clk 0:02:09]} 21... Bxd4 {[%clk 0:01:35.3]} 22. Qxd4
{[%clk 0:02:08.8]} 22... Rxh1 {[%clk 0:01:33.2]} 23. Rxh1 {[%clk 0:02:09.7]}
23... e5 {[%clk 0:01:31.6]} 24. Qe3 {[%clk 0:02:07]} 24... exf4 {[%clk
0:01:29.8]} 25. Qxf4 {[%clk 0:02:07.2]} 25... Ne5 {[%clk 0:01:30.3]} 26. Rh7
{[%clk 0:02:06.5]} 26... Qc5 {[%clk 0:01:16.3]} 27. Qd2 {[%clk 0:01:58.5]} 27...
Nxf3 {[%clk 0:01:12.7]} 28. Qd1 {[%clk 0:01:50.3]} 28... Qe3 {[%clk 0:01:07.3]}
29. Kb2 {[%clk 0:01:46.7]} 29... Bxe4 {[%clk 0:01:01.5]} 30. Rxg7 {[%clk
0:01:42.7]} 30... Bg6 {[%clk 0:00:52]} 31. a4 {[%clk 0:01:32.9]} 31... Qd2+
{[%clk 0:00:41.9]} 32. Qxd2 {[%clk 0:01:32.4]} 32... Nxd2 {[%clk 0:00:42.8]} 33.
Nd5 {[%clk 0:01:33.1]} 33... Kb7 {[%clk 0:00:36.8]} 34. Nf4 {[%clk 0:01:32.5]}
34... Kc6 {[%clk 0:00:23.6]} 35. Nxg6 {[%clk 0:01:32.7]} 35... fxg6 {[%clk
0:00:24.5]} 36. Rxg6 {[%clk 0:01:33.6]} 36... b5 {[%clk 0:00:22.3]} 37. cxb5+
{[%clk 0:01:33.1]} 37... axb5 {[%clk 0:00:23.2]} 38. axb5+ {[%clk 0:01:29.9]}
38... Kxb5 {[%clk 0:00:24.1]} 39. Rg7 {[%clk 0:01:30.3]} 39... Nf3 {[%clk
0:00:22.3]} 40. g6 {[%clk 0:01:30.1]} 40... Ne5 {[%clk 0:00:22.4]} 41. Kc3
{[%clk 0:01:28.3]} 41... Kc5 {[%clk 0:00:21.5]} 42. Rc7+ {[%clk 0:01:25.2]}
42... Kd5 {[%clk 0:00:21.6]} 43. g7 {[%clk 0:01:24.8]} 43... Ke6 {[%clk
0:00:19.5]} 44. b4 {[%clk 0:01:25.1]} 44... Kf6 {[%clk 0:00:17.7]} 45. b5 {[%clk
0:01:25.5]} 45... Nf7 {[%clk 0:00:14.1]} 46. Kd4 {[%clk 0:01:20.5]} 46... Kxg7
{[%clk 0:00:13]} 47. Kd5 {[%clk 0:01:21.2]} 47... Kf6 {[%clk 0:00:12]} 48. b6
{[%clk 0:01:21.5]} 48... Rb8 {[%clk 0:00:08.6]} 49. b7 {[%clk 0:01:14.5]} 49...
Ne5 {[%clk 0:00:04.2]} 50. Kxd6 {[%clk 0:01:13.2]} 50... Nf7+ {[%clk 0:00:04.1]}
51. Kd7 {[%clk 0:01:12.3]} 51... Ne5+ {[%clk 0:00:04]} 52. Kd6 {[%clk
0:01:12.9]} 52... Nf7+ {[%clk 0:00:04.2]} 53. Kc5 {[%clk 0:01:13.6]} 53... Ne5
{[%clk 0:00:04]} 54. Kb6 {[%clk 0:01:13]} 54... Ke6 {[%clk 0:00:03.5]} 55. Rc8
{[%clk 0:01:11.8]} 55... Rxb7+ {[%clk 0:00:03]} 56. Kxb7 {[%clk 0:01:12]} 56...
Kd7 {[%clk 0:00:03.2]} 57. Rh8 {[%clk 0:01:11.7]} 57... Kd6 {[%clk 0:00:03.2]}
58. Kb6 {[%clk 0:01:11.9]} 58... Kd5 {[%clk 0:00:03.4]} 59. Re8 {[%clk
0:01:11.3]} 59... Kd6 {[%clk 0:00:03]} 60. Rd8+ {[%clk 0:01:11.2]} 60... Nd7+
{[%clk 0:00:02.8]} 61. Kb7 {[%clk 0:01:11.2]} 61... Ke7 {[%clk 0:00:03.2]} 62.
Kc7 {[%clk 0:01:12.1]} 62... Nf6 {[%clk 0:00:03.9]} 63. Rd1 {[%clk 0:01:12.5]}
63... Ke6 {[%clk 0:00:04.3]} 64. Re1+ {[%clk 0:01:13.1]} 64... Kd5 {[%clk
0:00:04.3]} 65. Re2 {[%clk 0:01:12.8]} 65... Ne4 {[%clk 0:00:04.5]} 66. Re3
{[%clk 0:01:12.9]} 66... Kd4 {[%clk 0:00:04.7]} 67. Rh3 {[%clk 0:01:12.5]} 67...
Kd5 {[%clk 0:00:04.9]} 68. Kd7 {[%clk 0:01:12.3]} 68... Nf6+ {[%clk 0:00:04.5]}
69. Ke7 {[%clk 0:01:12.6]} 69... Ne4 {[%clk 0:00:05]} 70. Rh4 {[%clk 0:01:12.5]}
70... Nd2 {[%clk 0:00:03.7]} 71. Rh5+ {[%clk 0:01:12.2]} 71... Kd4 {[%clk
0:00:03.7]} 72. Kd6 {[%clk 0:01:12.7]} 72... Ne4+ {[%clk 0:00:03.9]} 73. Kc6
{[%clk 0:01:13.1]} 73... Nc3 {[%clk 0:00:03.6]} 74. Rh4+ {[%clk 0:01:13.3]}
74... Ne4 {[%clk 0:00:03.9]} 75. Rg4 {[%clk 0:01:12.4]} 75... Ke5 {[%clk
0:00:03.9]} 76. Rg1 {[%clk 0:01:12.5]} 76... Kd4 {[%clk 0:00:04.2]} 77. Re1
{[%clk 0:01:12.5]} 77... Ke5 {[%clk 0:00:03.5]} 78. Rd1 {[%clk 0:01:13.2]} 78...
Nf6 {[%clk 0:00:03.1]} 79. Kc5 {[%clk 0:01:00.7]} 79... Ne4+ {[%clk 0:00:03.1]}
80. Kc4 {[%clk 0:01:01.4]} 80... Nf2 {[%clk 0:00:02.9]} 81. Rf1 {[%clk
0:01:00.8]} 81... Ne4 {[%clk 0:00:02.7]} 82. Re1 {[%clk 0:01:01.5]} 82... Kf4
{[%clk 0:00:02.3]} 83. Kd4 {[%clk 0:01:02.4]} 83... Ng3 {[%clk 0:00:02.3]} 84.
Re8 {[%clk 0:01:01.4]} 84... Nf5+ {[%clk 0:00:03]} 85. Kd3 {[%clk 0:01:01.2]}
85... Ng3 {[%clk 0:00:03.1]} 86. Re1 {[%clk 0:00:59.7]} 86... Nf5 {[%clk
0:00:03.3]} 87. Re4+ {[%clk 0:00:59.8]} 87... Kg5 {[%clk 0:00:03.4]} 88. Ra4
{[%clk 0:00:59.1]} 88... Kf6 {[%clk 0:00:03.1]} 89. Ke4 {[%clk 0:01:00]} 89...
Nd6+ {[%clk 0:00:03.1]} 90. Kd5 {[%clk 0:01:00.6]} 90... Nf5 {[%clk 0:00:03.2]}
91. Rf4 {[%clk 0:00:59.8]} 91... Kg5 {[%clk 0:00:03.6]} 92. Ke4 {[%clk
0:01:00.5]} 92... Nh4 {[%clk 0:00:03.7]} 93. Rf8 {[%clk 0:00:59.8]} 93... Ng6
{[%clk 0:00:03.8]} 94. Rf5+ {[%clk 0:00:58.6]} 94... Kh6 {[%clk 0:00:04]} 95.
Rc5 {[%clk 0:00:58]} 95... Ne7 {[%clk 0:00:03.5]} 96. Kf4 {[%clk 0:00:57.7]}
96... Ng6+ {[%clk 0:00:03.8]} 97. Kf5 {[%clk 0:00:58.2]} 97... Ne7+ {[%clk
0:00:03.5]} 98. Kf6 {[%clk 0:00:58.5]} 98... Ng6 {[%clk 0:00:03.4]} 99. Rc4
{[%clk 0:00:56.5]} 99... Kh5 {[%clk 0:00:03.1]} 100. Rb4 {[%clk 0:00:56.2]}
100... Nh4 {[%clk 0:00:03.1]} 101. Rc4 {[%clk 0:00:51.1]} 101... Ng6 {[%clk
0:00:02.9]} 102. Rc1 {[%clk 0:00:51.4]} 102... Nh4 {[%clk 0:00:02.9]} 103. Rg1
{[%clk 0:00:51.3]} 103... Nf3 {[%clk 0:00:02.8]} 104. Rg3 {[%clk 0:00:51.5]}
104... Nh4 {[%clk 0:00:03.1]} 105. Rg5+ {[%clk 0:00:49.3]} 105... Kh6 {[%clk
0:00:03.5]} 106. Rg8 {[%clk 0:00:50]} 1/2-1/2

[Event "Early-Titled-Tuesday-Blitz-August-29-2023"]
[Site "Chess.com"]
[Date "2023.08.29"]
[Round "3"]
[White "Chessdreamer2020"]
[Black "ViktoriyaTarasova"]
[Result "0-1"]
[WhiteElo "2585"]
[BlackElo "2411"]
[TimeControl "180+1"]
[EndTime "8:31:11 PDT"]
[Termination "ViktoriyaTarasova won by checkmate"]

1. e4 {[%clk 0:02:59.3]} 1... e5 {[%clk 0:02:59.8]} 2. Nf3 {[%clk 0:02:58.4]}
2... Nc6 {[%clk 0:03:00]} 3. Bb5 {[%clk 0:02:58.6]} 3... Nf6 {[%clk 0:02:59.8]}
4. O-O {[%clk 0:02:53.6]} 4... Nxe4 {[%clk 0:02:58.8]} 5. Re1 {[%clk 0:02:54]}
5... Nd6 {[%clk 0:02:58]} 6. Nxe5 {[%clk 0:02:53.6]} 6... Be7 {[%clk 0:02:56.6]}
7. Bf1 {[%clk 0:02:52.4]} 7... Nxe5 {[%clk 0:02:56.2]} 8. Rxe5 {[%clk
0:02:52.4]} 8... O-O {[%clk 0:02:56.9]} 9. d4 {[%clk 0:02:52.5]} 9... Bf6 {[%clk
0:02:54.6]} 10. Re1 {[%clk 0:02:51.6]} 10... Nf5 {[%clk 0:02:54.7]} 11. c3
{[%clk 0:02:51.4]} 11... d5 {[%clk 0:02:54.9]} 12. Bd3 {[%clk 0:02:51.4]} 12...
Be6 {[%clk 0:02:51.8]} 13. Bf4 {[%clk 0:02:51]} 13... c6 {[%clk 0:02:50.1]} 14.
Nd2 {[%clk 0:02:51.2]} 14... Re8 {[%clk 0:02:50]} 15. Nf3 {[%clk 0:02:50.2]}
15... Nh4 {[%clk 0:02:45.3]} 16. Nxh4 {[%clk 0:02:42.9]} 16... Bxh4 {[%clk
0:02:45.4]} 17. Qh5 {[%clk 0:02:43]} 17... g6 {[%clk 0:02:41]} 18. Qh6 {[%clk
0:02:41.7]} 18... Bf6 {[%clk 0:02:39.6]} 19. Be5 {[%clk 0:02:35.9]} 19... Bxe5
{[%clk 0:02:35.7]} 20. Rxe5 {[%clk 0:02:35.9]} 20... Qf6 {[%clk 0:02:35.3]} 21.
Rae1 {[%clk 0:02:34.8]} 21... Qg7 {[%clk 0:02:33.6]} 22. Qe3 {[%clk 0:02:33.4]}
22... Qf8 {[%clk 0:02:09]} 23. h4 {[%clk 0:02:31.2]} 23... Bd7 {[%clk
0:02:07.6]} 24. h5 {[%clk 0:02:09.7]} 24... Rxe5 {[%clk 0:01:59.9]} 25. dxe5
{[%clk 0:02:10.6]} 25... Be6 {[%clk 0:01:48.3]} 26. h6 {[%clk 0:02:03.3]} 26...
b6 {[%clk 0:01:40]} 27. Qg5 {[%clk 0:02:00.6]} 27... Qd8 {[%clk 0:01:38]} 28.
Qg3 {[%clk 0:01:57]} 28... Qf8 {[%clk 0:01:34.4]} 29. Qh2 {[%clk 0:01:50]} 29...
c5 {[%clk 0:01:24.6]} 30. f4 {[%clk 0:01:49.1]} 30... Qc8 {[%clk 0:01:18.2]} 31.
Qh4 {[%clk 0:01:41.2]} 31... Qd8 {[%clk 0:01:14]} 32. Qf2 {[%clk 0:01:34.1]}
32... f5 {[%clk 0:01:00.1]} 33. Bb5 {[%clk 0:01:12.9]} 33... a6 {[%clk
0:00:49.9]} 34. Ba4 {[%clk 0:01:11.9]} 34... Qf8 {[%clk 0:00:46.4]} 35. Qh4
{[%clk 0:01:07.9]} 35... Qd8 {[%clk 0:00:46.3]} 36. Qg3 {[%clk 0:01:07]} 36...
Ra7 {[%clk 0:00:32.6]} 37. Rd1 {[%clk 0:01:06.3]} 37... b5 {[%clk 0:00:32.4]}
38. Bc2 {[%clk 0:01:05.6]} 38... Rd7 {[%clk 0:00:30.6]} 39. Bb3 {[%clk
0:00:59.3]} 39... c4 {[%clk 0:00:28.6]} 40. Bc2 {[%clk 0:00:59.7]} 40... d4
{[%clk 0:00:29.2]} 41. cxd4 {[%clk 0:00:56.1]} 41... Rxd4 {[%clk 0:00:29.2]} 42.
Qf3 {[%clk 0:00:20.4]} 42... Rxd1+ {[%clk 0:00:26.4]} 43. Bxd1 {[%clk
0:00:20.9]} 43... Qd4+ {[%clk 0:00:09.6]} 44. Kh2 {[%clk 0:00:20.6]} 44... Bd5
{[%clk 0:00:10.4]} 45. Qf1 {[%clk 0:00:15.9]} 45... b4 {[%clk 0:00:09.9]} 46.
Bf3 {[%clk 0:00:15.6]} 46... Qxf4+ {[%clk 0:00:07.4]} 47. Kg1 {[%clk 0:00:15.4]}
47... Qd4+ {[%clk 0:00:06.8]} 48. Kh2 {[%clk 0:00:15.4]} 48... Qxe5+ {[%clk
0:00:07]} 49. Kh1 {[%clk 0:00:15.2]} 49... Bxf3 {[%clk 0:00:05.8]} 50. Qxf3
{[%clk 0:00:16.1]} 50... Qe1+ {[%clk 0:00:05.7]} 51. Kh2 {[%clk 0:00:15.2]}
51... Qh4+ {[%clk 0:00:06.4]} 52. Kg1 {[%clk 0:00:16.1]} 52... Qxh6 {[%clk
0:00:06.7]} 53. Qd5+ {[%clk 0:00:14.8]} 53... Kg7 {[%clk 0:00:06.8]} 54. Qxc4
{[%clk 0:00:14.5]} 54... Qe3+ {[%clk 0:00:06.2]} 55. Kh1 {[%clk 0:00:13.5]}
55... Qe1+ {[%clk 0:00:06.2]} 56. Kh2 {[%clk 0:00:13.5]} 56... Qe5+ {[%clk
0:00:06.8]} 57. Kg1 {[%clk 0:00:13.2]} 57... a5 {[%clk 0:00:07.5]} 58. b3 {[%clk
0:00:12.2]} 58... Qe3+ {[%clk 0:00:07]} 59. Kh2 {[%clk 0:00:11.4]} 59... Qe5+
{[%clk 0:00:07.2]} 60. Kh3 {[%clk 0:00:09.8]} 60... Qe7 {[%clk 0:00:07.9]} 61.
Qd4+ {[%clk 0:00:09.6]} 61... Kh6 {[%clk 0:00:08.1]} 62. Qf4+ {[%clk 0:00:08.9]}
62... Qg5 {[%clk 0:00:07.2]} 63. Qd4 {[%clk 0:00:08.4]} 63... Qg4+ {[%clk
0:00:04.3]} 64. Qxg4 {[%clk 0:00:08.9]} 64... fxg4+ {[%clk 0:00:05]} 65. Kxg4
{[%clk 0:00:09.1]} 65... Kg7 {[%clk 0:00:05.8]} 66. Kg5 {[%clk 0:00:09.4]} 66...
Kf7 {[%clk 0:00:03.9]} 67. Kf4 {[%clk 0:00:10.3]} 67... Kf6 {[%clk 0:00:03.4]}
68. Ke4 {[%clk 0:00:10]} 68... Kg5 {[%clk 0:00:03.1]} 69. Kd5 {[%clk 0:00:10.1]}
69... Kg4 {[%clk 0:00:03.7]} 70. Kc5 {[%clk 0:00:11]} 70... h5 {[%clk
0:00:04.1]} 71. Kb5 {[%clk 0:00:11.9]} 71... Kg3 {[%clk 0:00:04.7]} 72. Kxa5
{[%clk 0:00:12.8]} 72... Kxg2 {[%clk 0:00:05.4]} 73. Kxb4 {[%clk 0:00:13.7]}
73... h4 {[%clk 0:00:06]} 74. a4 {[%clk 0:00:14.6]} 74... h3 {[%clk 0:00:06.7]}
75. a5 {[%clk 0:00:15.5]} 75... h2 {[%clk 0:00:07.4]} 76. a6 {[%clk 0:00:15.7]}
76... h1=Q {[%clk 0:00:07.8]} 77. Ka5 {[%clk 0:00:16.6]} 77... Qh5+ {[%clk
0:00:08]} 78. Kb6 {[%clk 0:00:15]} 78... Qf3 {[%clk 0:00:06.8]} 79. b4 {[%clk
0:00:14.2]} 79... Qa8 {[%clk 0:00:07.3]} 80. b5 {[%clk 0:00:14.5]} 80... g5
{[%clk 0:00:08]} 81. Ka5 {[%clk 0:00:14]} 81... g4 {[%clk 0:00:07.9]} 82. b6
{[%clk 0:00:14.9]} 82... g3 {[%clk 0:00:07.7]} 83. a7 {[%clk 0:00:14.8]} 83...
Qd5+ {[%clk 0:00:06.8]} 84. Ka6 {[%clk 0:00:15]} 84... Kf1 {[%clk 0:00:05.7]}
85. b7 {[%clk 0:00:15]} 85... Qc6+ {[%clk 0:00:06.1]} 86. Ka5 {[%clk 0:00:14.8]}
86... Qxb7 {[%clk 0:00:06.6]} 87. Ka4 {[%clk 0:00:14.8]} 87... Qxa7+ {[%clk
0:00:06.9]} 88. Kb5 {[%clk 0:00:15.7]} 88... g2 {[%clk 0:00:07.5]} 89. Kc4
{[%clk 0:00:16.6]} 89... g1=Q {[%clk 0:00:07.9]} 90. Kb3 {[%clk 0:00:17.5]}
90... Qge3+ {[%clk 0:00:07.9]} 91. Kc2 {[%clk 0:00:18.4]} 91... Qa2+ {[%clk
0:00:07.7]} 92. Kd1 {[%clk 0:00:18.4]} 92... Qe1# {[%clk 0:00:08.1]} 0-1

[Event "Early-Titled-Tuesday-Blitz-August-29-2023"]
[Site "Chess.com"]
[Date "2023.08.29"]
[Round "4"]
[White "vladislavkovalev"]
[Black "DanielNaroditsky"]
[Result "1/2-1/2"]
[WhiteElo "2915"]
[BlackElo "3152"]
[TimeControl "180+1"]
[EndTime "8:34:00 PDT"]
[Termination "Game drawn by agreement"]

1. e4 {[%clk 0:03:00.9]} 1... Nf6 {[%clk 0:02:57.9]} 2. e5 {[%clk 0:03:01]} 2...
Nd5 {[%clk 0:02:58.3]} 3. d4 {[%clk 0:03:01.6]} 3... d6 {[%clk 0:02:58.9]} 4.
Nf3 {[%clk 0:03:02]} 4... dxe5 {[%clk 0:02:59.1]} 5. Nxe5 {[%clk 0:03:02.9]}
5... c6 {[%clk 0:02:59.7]} 6. Be2 {[%clk 0:03:02.1]} 6... Bf5 {[%clk 0:02:59.3]}
7. O-O {[%clk 0:03:02]} 7... Nd7 {[%clk 0:02:59.5]} 8. Nf3 {[%clk 0:03:00.5]}
8... e6 {[%clk 0:02:59.9]} 9. a3 {[%clk 0:03:00.3]} 9... Bd6 {[%clk 0:02:56.7]}
10. c4 {[%clk 0:03:00.9]} 10... N5f6 {[%clk 0:02:57]} 11. Nc3 {[%clk 0:03:00]}
11... h6 {[%clk 0:02:56.6]} 12. Re1 {[%clk 0:02:56.8]} 12... O-O {[%clk
0:02:56.3]} 13. h3 {[%clk 0:02:44.3]} 13... Re8 {[%clk 0:02:54.7]} 14. Be3
{[%clk 0:02:44]} 14... Ne4 {[%clk 0:02:44.3]} 15. Rc1 {[%clk 0:02:19.4]} 15...
Nxc3 {[%clk 0:02:32.3]} 16. Rxc3 {[%clk 0:02:20.3]} 16... Nf6 {[%clk 0:02:32.8]}
1/2-1/2

[Event "Early-Titled-Tuesday-Blitz-August-29-2023"]
[Site "Chess.com"]
[Date "2023.08.29"]
[Round "4"]
[White "seopie"]
[Black "Gauravthegm"]
[Result "1-0"]
[WhiteElo "2667"]
[BlackElo "2425"]
[TimeControl "180+1"]
[EndTime "8:34:14 PDT"]
[Termination "seopie won by resignation"]

1. d4 {[%clk 0:03:00.9]} 1... c5 {[%clk 0:02:59.5]} 2. d5 {[%clk 0:03:00.6]}
2... e5 {[%clk 0:02:59.3]} 3. e4 {[%clk 0:02:59.3]} 3... d6 {[%clk 0:02:59.5]}
4. Nc3 {[%clk 0:02:58.1]} 4... a6 {[%clk 0:02:59.4]} 5. a4 {[%clk 0:02:57.7]}
5... f5 {[%clk 0:02:59.1]} 6. exf5 {[%clk 0:02:54.1]} 6... Bxf5 {[%clk
0:02:58.7]} 7. Bd3 {[%clk 0:02:54.7]} 7... Bxd3 {[%clk 0:02:57.4]} 8. Qxd3
{[%clk 0:02:55.6]} 8... Nf6 {[%clk 0:02:57]} 9. Nf3 {[%clk 0:02:50.9]} 9... Be7
{[%clk 0:02:55.2]} 10. Ng5 {[%clk 0:02:49]} 10... Nxd5 {[%clk 0:02:33]} 11. Nxd5
{[%clk 0:02:18.9]} 11... Bxg5 {[%clk 0:02:33.1]} 12. Bxg5 {[%clk 0:02:18.6]}
12... Qxg5 {[%clk 0:02:34]} 13. Nc7+ {[%clk 0:02:18.4]} 13... Kd7 {[%clk
0:02:34.5]} 14. Nxa8 {[%clk 0:02:19.1]} 14... Qxg2 {[%clk 0:02:34.3]} 15. O-O-O
{[%clk 0:02:18.7]} 15... Qc6 {[%clk 0:02:30.1]} 16. a5 {[%clk 0:02:08.4]} 1-0

[Event "Early-Titled-Tuesday-Blitz-August-29-2023"]
[Site "Chess.com"]
[Date "2023.08.29"]
[Round "4"]
[White "VerdeNotte"]
[Black "FairChess_on_YouTube"]
[Result "1/2-1/2"]
[WhiteElo "2910"]
[BlackElo "3055"]
[TimeControl "180+1"]
[EndTime "8:35:04 PDT"]
[Termination "Game drawn by repetition"]

1. Nf3 {[%clk 0:03:00.9]} 1... b5 {[%clk 0:02:58.5]} 2. e4 {[%clk 0:03:00.8]}
2... Bb7 {[%clk 0:02:58.3]} 3. Bxb5 {[%clk 0:02:59.9]} 3... Bxe4 {[%clk
0:02:58.4]} 4. Nc3 {[%clk 0:03:00.5]} 4... Bxf3 {[%clk 0:02:56]} 5. Qxf3 {[%clk
0:03:00.4]} 5... c6 {[%clk 0:02:56.6]} 6. O-O {[%clk 0:02:53.6]} 6... Nf6 {[%clk
0:02:55.8]} 7. d4 {[%clk 0:02:51]} 7... e6 {[%clk 0:02:55.2]} 8. Bd3 {[%clk
0:02:49.5]} 8... d5 {[%clk 0:02:55.1]} 9. Qg3 {[%clk 0:02:45.6]} 9... Nbd7
{[%clk 0:02:46.1]} 10. b3 {[%clk 0:02:31.2]} 10... Bb4 {[%clk 0:02:36.5]} 11.
Na4 {[%clk 0:02:25.2]} 11... O-O {[%clk 0:02:36]} 12. Bh6 {[%clk 0:02:19.5]}
12... Nh5 {[%clk 0:02:31.1]} 13. Qf3 {[%clk 0:02:02.2]} 13... Nhf6 {[%clk
0:02:23.6]} 14. Qg3 {[%clk 0:02:02.1]} 14... Nh5 {[%clk 0:02:11.1]} 15. Qf3
{[%clk 0:01:44.8]} 15... Nhf6 {[%clk 0:02:05.4]} 16. Qg3 {[%clk 0:01:36.3]}
1/2-1/2

[Event "Early-Titled-Tuesday-Blitz-August-29-2023"]
[Site "Chess.com"]
[Date "2023.08.29"]
[Round "4"]
[White "NovozhilovSemen"]
[Black "Khromkin"]
[Result "1-0"]
[WhiteElo "2507"]
[BlackElo "2327"]
[TimeControl "180+1"]
[EndTime "8:35:09 PDT"]
[Termination "NovozhilovSemen won by resignation"]

1. d4 {[%clk 0:03:00.9]} 1... d5 {[%clk 0:02:55.3]} 2. c4 {[%clk 0:02:58.1]}
2... dxc4 {[%clk 0:02:55.2]} 3. e3 {[%clk 0:02:58.1]} 3... e5 {[%clk 0:02:54.5]}
4. Bxc4 {[%clk 0:02:58.2]} 4... exd4 {[%clk 0:02:55.4]} 5. exd4 {[%clk
0:02:58.5]} 5... Bd6 {[%clk 0:02:55.5]} 6. Nf3 {[%clk 0:02:58.8]} 6... Nf6
{[%clk 0:02:56.2]} 7. O-O {[%clk 0:02:59]} 7... O-O {[%clk 0:02:56.9]} 8. Nc3
{[%clk 0:02:59.1]} 8... Nc6 {[%clk 0:02:56.3]} 9. a3 {[%clk 0:02:59.5]} 9... a6
{[%clk 0:02:53]} 10. h3 {[%clk 0:02:59.5]} 10... h6 {[%clk 0:02:53]} 11. Be3
{[%clk 0:02:57.9]} 11... Bf5 {[%clk 0:02:52.1]} 12. Rc1 {[%clk 0:02:55.6]} 12...
Qd7 {[%clk 0:02:51.6]} 13. b4 {[%clk 0:02:55.1]} 13... Bxh3 {[%clk 0:02:46]} 14.
gxh3 {[%clk 0:02:54.3]} 14... Qxh3 {[%clk 0:02:46.6]} 15. Re1 {[%clk 0:02:46.5]}
15... Ng4 {[%clk 0:02:46]} 16. Bf1 {[%clk 0:02:37.2]} 16... Bh2+ {[%clk
0:02:45.5]} 17. Kh1 {[%clk 0:02:37.7]} 17... Qh5 {[%clk 0:02:45.6]} 18. Bg2
{[%clk 0:02:37.9]} 18... Rfe8 {[%clk 0:02:28.9]} 19. Qd2 {[%clk 0:02:25.7]}
19... Rad8 {[%clk 0:02:18.3]} 20. Nd1 {[%clk 0:02:19.3]} 20... Re6 {[%clk
0:01:44.3]} 21. Rc5 {[%clk 0:02:17.2]} 21... Bd6+ {[%clk 0:01:37.5]} 22. Rxh5
{[%clk 0:02:16.2]} 22... Bc5 {[%clk 0:01:37.8]} 23. bxc5 {[%clk 0:02:15.6]} 1-0

[Event "Early-Titled-Tuesday-Blitz-August-29-2023"]
[Site "Chess.com"]
[Date "2023.08.29"]
[Round "4"]
[White "shimastream"]
[Black "IljaZaragatski"]
[Result "1-0"]
[WhiteElo "2897"]
[BlackElo "2633"]
[TimeControl "180+1"]
[EndTime "8:36:17 PDT"]
[Termination "shimastream won by resignation"]

1. e4 {[%clk 0:03:00.9]} 1... e6 {[%clk 0:02:56.4]} 2. d4 {[%clk 0:02:26]} 2...
d5 {[%clk 0:02:55.9]} 3. Nc3 {[%clk 0:02:26]} 3... Nc6 {[%clk 0:02:55.8]} 4.
Nge2 {[%clk 0:02:20.3]} 4... Nf6 {[%clk 0:02:41.4]} 5. e5 {[%clk 0:02:19.8]}
5... Nd7 {[%clk 0:02:41.1]} 6. f4 {[%clk 0:02:19.2]} 6... b6 {[%clk 0:02:39.3]}
7. Be3 {[%clk 0:02:18]} 7... Ba6 {[%clk 0:02:38.5]} 8. f5 {[%clk 0:02:02.5]}
8... exf5 {[%clk 0:02:04.4]} 9. Nxd5 {[%clk 0:01:56]} 9... Ne7 {[%clk
0:01:49.9]} 10. Ndf4 {[%clk 0:01:48.8]} 10... Ng6 {[%clk 0:01:49.5]} 11. Qd2
{[%clk 0:01:39.6]} 11... Qe7 {[%clk 0:01:10]} 12. Nd5 {[%clk 0:01:33.9]} 12...
Qd8 {[%clk 0:01:09.1]} 13. O-O-O {[%clk 0:01:33.6]} 13... c6 {[%clk 0:01:06.7]}
14. Ndc3 {[%clk 0:01:33.1]} 14... Qc7 {[%clk 0:01:02.9]} 15. Nf4 {[%clk
0:01:32]} 15... O-O-O {[%clk 0:01:01.3]} 16. Bxa6+ {[%clk 0:01:29.9]} 1-0

[Event "Early-Titled-Tuesday-Blitz-August-29-2023"]
[Site "Chess.com"]
[Date "2023.08.29"]
[Round "4"]
[White "averageFM"]
[Black "YellowJacek"]
[Result "1-0"]
[WhiteElo "2523"]
[BlackElo "2358"]
[TimeControl "180+1"]
[EndTime "8:36:20 PDT"]
[Termination "averageFM won by resignation"]

1. e4 {[%clk 0:03:00.9]} 1... c5 {[%clk 0:02:55.1]} 2. Nf3 {[%clk 0:03:00.1]}
2... d6 {[%clk 0:02:55]} 3. d4 {[%clk 0:02:59.8]} 3... cxd4 {[%clk 0:02:55.4]}
4. Nxd4 {[%clk 0:03:00.7]} 4... Nf6 {[%clk 0:02:55.4]} 5. Nc3 {[%clk 0:03:01.3]}
5... g6 {[%clk 0:02:55.8]} 6. Be3 {[%clk 0:02:59.8]} 6... Bg7 {[%clk 0:02:56.1]}
7. f3 {[%clk 0:03:00.2]} 7... O-O {[%clk 0:02:56.2]} 8. Qd2 {[%clk 0:03:00.5]}
8... Nc6 {[%clk 0:02:56.7]} 9. O-O-O {[%clk 0:03:01.1]} 9... d5 {[%clk
0:02:56.1]} 10. Kb1 {[%clk 0:03:01.3]} 10... Nxd4 {[%clk 0:02:51.3]} 11. e5
{[%clk 0:03:01.4]} 11... Nf5 {[%clk 0:02:51.3]} 12. exf6 {[%clk 0:03:01.5]}
12... exf6 {[%clk 0:02:32.7]} 13. Bc5 {[%clk 0:03:00.7]} 13... Re8 {[%clk
0:02:31.1]} 14. Nxd5 {[%clk 0:02:58.2]} 14... Be6 {[%clk 0:02:22.6]} 15. Bb5
{[%clk 0:02:49.4]} 15... Bxd5 {[%clk 0:02:04.3]} 16. Bxe8 {[%clk 0:02:43.3]}
16... Bxa2+ {[%clk 0:02:03.8]} 17. Kxa2 {[%clk 0:02:43]} 17... Qxe8 {[%clk
0:02:04.3]} 18. Qd7 {[%clk 0:02:42.9]} 18... Qe2 {[%clk 0:01:59.8]} 19. Qxb7
{[%clk 0:02:22.6]} 19... Rf8 {[%clk 0:01:39.3]} 20. Bxf8 {[%clk 0:02:20.4]}
20... Bxf8 {[%clk 0:01:40.2]} 21. Qe4 {[%clk 0:02:16.7]} 21... Qxg2 {[%clk
0:01:36.9]} 22. Qxf5 {[%clk 0:02:13.1]} 22... gxf5 {[%clk 0:01:27.9]} 23. Rhg1
{[%clk 0:02:12.6]} 23... Qg5 {[%clk 0:01:21.2]} 24. f4 {[%clk 0:02:09.7]} 24...
Qg4 {[%clk 0:01:17.4]} 25. h3 {[%clk 0:02:08.2]} 25... Qg6 {[%clk 0:01:16.9]}
26. Rxg6+ {[%clk 0:01:55.8]} 26... fxg6 {[%clk 0:01:17.8]} 27. c4 {[%clk
0:01:55.2]} 27... g5 {[%clk 0:01:11.1]} 28. fxg5 {[%clk 0:01:42.7]} 28... fxg5
{[%clk 0:01:12]} 29. Rd5 {[%clk 0:01:42.5]} 1-0